[Event "Early-Titled-Tuesday-Blitz-October-03-2023"]
[Site "Chess.com"]
[Date "2023.10.03"]
[Round "2"]
[White "GroovyKettle"]
[Black "LeRoidesChampions"]
[Result "1-0"]
[WhiteElo "2972"]
[BlackElo "2621"]
[TimeControl "180+1"]
[EndTime "8:18:41 PDT"]
[Termination "GroovyKettle won by checkmate"]

1. e4 {[%clk 0:02:58.6]} 1... c5 {[%clk 0:02:56.3]} 2. Nf3 {[%clk 0:02:58.3]}
2... d6 {[%clk 0:02:56.6]} 3. Nc3 {[%clk 0:02:58.6]} 3... a6 {[%clk 0:02:55.8]}
4. d4 {[%clk 0:02:52]} 4... cxd4 {[%clk 0:02:55.4]} 5. Qxd4 {[%clk 0:02:50.8]}
5... Nc6 {[%clk 0:02:53.9]} 6. Qe3 {[%clk 0:02:51.4]} 6... Nf6 {[%clk
0:02:53.1]} 7. Bc4 {[%clk 0:02:50.6]} 7... e6 {[%clk 0:02:52.4]} 8. O-O {[%clk
0:02:50]} 8... Be7 {[%clk 0:02:52.9]} 9. Rd1 {[%clk 0:02:49.3]} 9... Qc7 {[%clk
0:02:52.2]} 10. h3 {[%clk 0:02:48.8]} 10... O-O {[%clk 0:02:51.7]} 11. a4 {[%clk
0:02:48.3]} 11... b6 {[%clk 0:02:48.2]} 12. Qe2 {[%clk 0:02:46.1]} 12... Bb7
{[%clk 0:02:48.1]} 13. Bf4 {[%clk 0:02:46.1]} 13... Ne5 {[%clk 0:02:42]} 14.
Nxe5 {[%clk 0:02:44.1]} 14... dxe5 {[%clk 0:02:42.9]} 15. Bg3 {[%clk 0:02:27.7]}
15... g6 {[%clk 0:02:36.4]} 16. Rd2 {[%clk 0:02:14.8]} 16... Nh5 {[%clk
0:02:34.1]} 17. Bh2 {[%clk 0:02:13.4]} 17... Nf4 {[%clk 0:02:34.7]} 18. Qf1
{[%clk 0:02:08.6]} 18... Rfd8 {[%clk 0:02:30.2]} 19. Rad1 {[%clk 0:02:07.7]}
19... Rxd2 {[%clk 0:02:26.8]} 20. Rxd2 {[%clk 0:02:08.6]} 20... Bc5 {[%clk
0:02:25.7]} 21. Bb3 {[%clk 0:01:56.4]} 21... Rd8 {[%clk 0:02:17.8]} 22. Qd1
{[%clk 0:01:54.9]} 22... Rxd2 {[%clk 0:02:12.8]} 23. Qxd2 {[%clk 0:01:55.8]}
23... Bb4 {[%clk 0:02:13.3]} 24. Qe3 {[%clk 0:01:54.8]} 24... Bc5 {[%clk
0:01:58.5]} 25. Qd2 {[%clk 0:01:51]} 25... Bb4 {[%clk 0:01:54.8]} 26. g3 {[%clk
0:01:35.2]} 26... Nh5 {[%clk 0:01:14.2]} 27. f3 {[%clk 0:01:30.2]} 27... Nf6
{[%clk 0:01:05.6]} 28. g4 {[%clk 0:01:27.9]} 28... Nd7 {[%clk 0:01:05]} 29. Qg5
{[%clk 0:01:20.3]} 29... Bxc3 {[%clk 0:01:00]} 30. bxc3 {[%clk 0:01:20.1]} 30...
Qxc3 {[%clk 0:01:00.9]} 31. Qd8+ {[%clk 0:01:19.7]} 31... Nf8 {[%clk 0:01:01]}
32. Qxb6 {[%clk 0:01:20]} 32... Qxf3 {[%clk 0:00:46.8]} 33. Qxb7 {[%clk
0:01:19.2]} 33... Qe3+ {[%clk 0:00:46.9]} 34. Kg2 {[%clk 0:01:15.6]} 34... Qe2+
{[%clk 0:00:46.1]} 35. Kg1 {[%clk 0:01:15]} 35... Qe3+ {[%clk 0:00:45.9]} 36.
Kf1 {[%clk 0:01:15.4]} 36... Qf3+ {[%clk 0:00:46.1]} 37. Ke1 {[%clk 0:00:42.3]}
37... Qh1+ {[%clk 0:00:45.6]} 38. Kd2 {[%clk 0:00:42.9]} 38... Qxh2+ {[%clk
0:00:46]} 39. Kc1 {[%clk 0:00:43.6]} 39... Qxh3 {[%clk 0:00:46.5]} 40. Qxa6
{[%clk 0:00:43.6]} 40... Qe3+ {[%clk 0:00:37.8]} 41. Kb2 {[%clk 0:00:41.5]}
41... Kg7 {[%clk 0:00:31]} 42. a5 {[%clk 0:00:35.9]} 42... Qd4+ {[%clk 0:00:29]}
43. Ka2 {[%clk 0:00:35.1]} 43... Nd7 {[%clk 0:00:28.1]} 44. Qb5 {[%clk
0:00:26.1]} 44... Nc5 {[%clk 0:00:23.3]} 45. a6 {[%clk 0:00:25.7]} 45... Nxe4
{[%clk 0:00:23.1]} 46. Qc6 {[%clk 0:00:20.6]} 46... Nc3+ {[%clk 0:00:15.5]} 47.
Ka3 {[%clk 0:00:20.6]} 47... e4 {[%clk 0:00:15.7]} 48. Qc4 {[%clk 0:00:16.8]}
48... Qd6+ {[%clk 0:00:14.1]} 49. Kb2 {[%clk 0:00:15.4]} 49... Nd1+ {[%clk
0:00:11.1]} 50. Kc1 {[%clk 0:00:16]} 50... Nf2 {[%clk 0:00:04.8]} 51. Qc3+
{[%clk 0:00:12.1]} 51... e5 {[%clk 0:00:05.2]} 52. Qe3 {[%clk 0:00:11.4]} 52...
Nxg4 {[%clk 0:00:03.7]} 53. Qxe4 {[%clk 0:00:10.8]} 53... Nf6 {[%clk 0:00:04.1]}
54. Qb7 {[%clk 0:00:10.8]} 54... Qa3+ {[%clk 0:00:02.4]} 55. Kb1 {[%clk
0:00:10.8]} 55... Qa5 {[%clk 0:00:01.9]} 56. a7 {[%clk 0:00:10.9]} 56... Qe1+
{[%clk 0:00:02.3]} 57. Kb2 {[%clk 0:00:10.9]} 57... Ne4 {[%clk 0:00:03]} 58.
a8=Q {[%clk 0:00:09.6]} 58... Qc3+ {[%clk 0:00:03.9]} 59. Ka2 {[%clk 0:00:10.2]}
59... Nd2 {[%clk 0:00:02.9]} 60. Qxf7+ {[%clk 0:00:10.3]} 60... Kh6 {[%clk
0:00:03.1]} 61. Qaf8+ {[%clk 0:00:09.8]} 61... Kh5 {[%clk 0:00:02.7]} 62. Qxh7+
{[%clk 0:00:08.6]} 62... Kg5 {[%clk 0:00:03.1]} 63. Qfe7+ {[%clk 0:00:09]} 63...
Kf4 {[%clk 0:00:03.5]} 64. Qhh4+ {[%clk 0:00:08.5]} 64... Ke3 {[%clk 0:00:02.3]}
65. Qe1+ {[%clk 0:00:07.8]} 65... Kf4 {[%clk 0:00:01.7]} 66. Qf6+ {[%clk
0:00:07.5]} 66... Kg4 {[%clk 0:00:01.4]} 67. Be6+ {[%clk 0:00:08]} 67... Kh5
{[%clk 0:00:01.4]} 68. Qeh4# {[%clk 0:00:08.6]} 1-0

[Event "Early-Titled-Tuesday-Blitz-October-03-2023"]
[Site "Chess.com"]
[Date "2023.10.03"]
[Round "2"]
[White "bascheyaro"]
[Black "BigAl"]
[Result "1/2-1/2"]
[WhiteElo "2796"]
[BlackElo "2555"]
[TimeControl "180+1"]
[EndTime "8:18:45 PDT"]
[Termination "Game drawn by repetition"]

1. d4 {[%clk 0:03:00.9]} 1... Nf6 {[%clk 0:02:59.4]} 2. Nf3 {[%clk 0:03:00.7]}
2... g6 {[%clk 0:02:59.9]} 3. c4 {[%clk 0:03:00.6]} 3... Bg7 {[%clk 0:03:00.8]}
4. Nc3 {[%clk 0:03:00.9]} 4... O-O {[%clk 0:03:01.7]} 5. Bf4 {[%clk 0:03:01.2]}
5... d6 {[%clk 0:03:02.6]} 6. Qd2 {[%clk 0:03:01.4]} 6... c5 {[%clk 0:03:02.9]}
7. d5 {[%clk 0:03:01.3]} 7... b5 {[%clk 0:03:02.9]} 8. cxb5 {[%clk 0:02:56.2]}
8... a6 {[%clk 0:03:03.1]} 9. e4 {[%clk 0:02:55.5]} 9... Qa5 {[%clk 0:02:57.3]}
10. b6 {[%clk 0:02:48.1]} 10... Qxb6 {[%clk 0:02:48.2]} 11. Be2 {[%clk 0:02:46]}
11... Bg4 {[%clk 0:02:41.5]} 12. O-O {[%clk 0:02:45.3]} 12... Bxf3 {[%clk
0:02:39.6]} 13. Bxf3 {[%clk 0:02:45.3]} 13... Nbd7 {[%clk 0:02:40.5]} 14. Rae1
{[%clk 0:02:37.1]} 14... Rab8 {[%clk 0:02:28.9]} 15. b3 {[%clk 0:02:35.8]} 15...
Rfc8 {[%clk 0:02:09.5]} 16. e5 {[%clk 0:02:18.6]} 16... dxe5 {[%clk 0:02:09.2]}
17. Bxe5 {[%clk 0:02:14.7]} 17... Nxe5 {[%clk 0:02:09.2]} 18. Rxe5 {[%clk
0:02:15.6]} 18... Qd6 {[%clk 0:01:37]} 19. Rfe1 {[%clk 0:02:14.8]} 19... Rc7
{[%clk 0:01:34.1]} 20. R5e2 {[%clk 0:01:56.8]} 20... h5 {[%clk 0:01:32.8]} 21.
Qd3 {[%clk 0:01:48.1]} 21... Rb4 {[%clk 0:01:28.1]} 22. Ne4 {[%clk 0:01:38.9]}
22... Nxe4 {[%clk 0:01:27.8]} 23. Rxe4 {[%clk 0:01:39.8]} 23... Bf6 {[%clk
0:01:24.4]} 24. Rc1 {[%clk 0:01:33.6]} 24... a5 {[%clk 0:01:22.5]} 25. a3 {[%clk
0:01:29.6]} 25... Rb8 {[%clk 0:01:21.7]} 26. Rcc4 {[%clk 0:01:11.9]} 26... Rcb7
{[%clk 0:01:14]} 27. Re3 {[%clk 0:01:10.1]} 27... Bd4 {[%clk 0:01:06.6]} 28. Re1
{[%clk 0:01:10.3]} 28... Rxb3 {[%clk 0:01:06.1]} 29. Qe4 {[%clk 0:00:53.9]}
29... Rb2 {[%clk 0:01:03]} 30. Rc2 {[%clk 0:00:53.1]} 30... Rxc2 {[%clk
0:01:01.6]} 31. Qxc2 {[%clk 0:00:54]} 31... Rb2 {[%clk 0:01:01.7]} 32. Qc1
{[%clk 0:00:53.6]} 32... Bxf2+ {[%clk 0:00:43.5]} 33. Kh1 {[%clk 0:00:52]} 33...
Bxe1 {[%clk 0:00:42.9]} 34. Qxb2 {[%clk 0:00:52.3]} 34... Bh4 {[%clk 0:00:34.7]}
35. Qc3 {[%clk 0:00:50.2]} 35... Qb6 {[%clk 0:00:29.7]} 36. g3 {[%clk
0:00:50.1]} 36... Bf6 {[%clk 0:00:30.2]} 37. Qc2 {[%clk 0:00:48.3]} 37... Kg7
{[%clk 0:00:28.4]} 38. Be2 {[%clk 0:00:44.8]} 38... Bd4 {[%clk 0:00:28.6]} 39.
Bc4 {[%clk 0:00:38.9]} 39... Qf6 {[%clk 0:00:27.1]} 40. Qe2 {[%clk 0:00:38]}
40... h4 {[%clk 0:00:21.7]} 41. Kg2 {[%clk 0:00:37.3]} 41... hxg3 {[%clk
0:00:21.3]} 42. hxg3 {[%clk 0:00:37.6]} 42... Be5 {[%clk 0:00:20.8]} 43. a4
{[%clk 0:00:37]} 43... Qg5 {[%clk 0:00:19.8]} 44. Qf3 {[%clk 0:00:34.2]} 44...
Bd6 {[%clk 0:00:17.8]} 45. Qd3 {[%clk 0:00:32.7]} 45... Qe5 {[%clk 0:00:17]} 46.
Kf2 {[%clk 0:00:31.3]} 46... Qb2+ {[%clk 0:00:15.7]} 47. Qe2 {[%clk 0:00:26.5]}
47... Qd4+ {[%clk 0:00:13.5]} 48. Kg2 {[%clk 0:00:23]} 48... f5 {[%clk
0:00:11.5]} 49. Qd3 {[%clk 0:00:19.6]} 49... Qe5 {[%clk 0:00:10.4]} 50. Bb5
{[%clk 0:00:18.1]} 50... Qb2+ {[%clk 0:00:09.8]} 51. Kf3 {[%clk 0:00:17.6]}
51... Qe5 {[%clk 0:00:10.1]} 52. Kg2 {[%clk 0:00:17.9]} 52... g5 {[%clk
0:00:10.7]} 53. Qf3 {[%clk 0:00:16]} 53... Qb2+ {[%clk 0:00:08.9]} 54. Qe2
{[%clk 0:00:16.2]} 54... Qf6 {[%clk 0:00:08.1]} 55. Qf3 {[%clk 0:00:16.6]} 55...
g4 {[%clk 0:00:07.9]} 56. Qe3 {[%clk 0:00:16.5]} 56... f4 {[%clk 0:00:05.9]} 57.
gxf4 {[%clk 0:00:16.6]} 57... Bxf4 {[%clk 0:00:06.8]} 58. Qe6 {[%clk 0:00:15.9]}
58... Qb2+ {[%clk 0:00:05.9]} 59. Be2 {[%clk 0:00:15.7]} 59... Qe5 {[%clk
0:00:04]} 60. Qxg4+ {[%clk 0:00:15.7]} 60... Qg5 {[%clk 0:00:03.1]} 61. Qxg5+
{[%clk 0:00:15.8]} 61... Bxg5 {[%clk 0:00:04]} 62. Kf3 {[%clk 0:00:16.1]} 62...
Kf6 {[%clk 0:00:04.9]} 63. Ke4 {[%clk 0:00:16.6]} 63... Bh4 {[%clk 0:00:04.7]}
64. Bc4 {[%clk 0:00:16.9]} 64... Bg3 {[%clk 0:00:04.6]} 65. Bb5 {[%clk
0:00:17.3]} 65... Bd6 {[%clk 0:00:05.5]} 66. Bc6 {[%clk 0:00:17.6]} 66... Bc7
{[%clk 0:00:05.8]} 67. Bd7 {[%clk 0:00:17.6]} 67... Bd6 {[%clk 0:00:06.7]} 68.
Kd3 {[%clk 0:00:16.5]} 68... Bc7 {[%clk 0:00:07.2]} 69. Kc4 {[%clk 0:00:17]}
69... Ke5 {[%clk 0:00:07.7]} 70. Be6 {[%clk 0:00:16.9]} 70... Kd6 {[%clk
0:00:07.4]} 71. Bf7 {[%clk 0:00:17.3]} 71... Bd8 {[%clk 0:00:07.6]} 72. Be6
{[%clk 0:00:17.8]} 72... Bc7 {[%clk 0:00:07.9]} 73. Bg4 {[%clk 0:00:18.1]} 73...
Bd8 {[%clk 0:00:08.4]} 74. Be6 {[%clk 0:00:19]} 74... Bc7 {[%clk 0:00:08.9]}
1/2-1/2

[Event "Early-Titled-Tuesday-Blitz-October-03-2023"]
[Site "Chess.com"]
[Date "2023.10.03"]
[Round "2"]
[White "InitiatingASC"]
[Black "elmusmolamas"]
[Result "1-0"]
[WhiteElo "2339"]
[BlackElo "2466"]
[TimeControl "180+1"]
[EndTime "8:18:45 PDT"]
[Termination "InitiatingASC won on time"]

1. d4 {[%clk 0:02:07.2]} 1... c5 {[%clk 0:02:58.9]} 2. e3 {[%clk 0:02:04.9]}
2... cxd4 {[%clk 0:02:55.1]} 3. exd4 {[%clk 0:02:05.1]} 3... d5 {[%clk 0:02:56]}
4. c4 {[%clk 0:02:05.2]} 4... Nf6 {[%clk 0:02:55.2]} 5. Nc3 {[%clk 0:02:06.1]}
5... Be6 {[%clk 0:02:54.8]} 6. Nf3 {[%clk 0:02:07]} 6... Nc6 {[%clk 0:02:52.8]}
7. c5 {[%clk 0:02:06.8]} 7... g6 {[%clk 0:02:52.1]} 8. Be2 {[%clk 0:02:05]} 8...
Bg7 {[%clk 0:02:52.5]} 9. O-O {[%clk 0:02:01]} 9... O-O {[%clk 0:02:52.8]} 10.
h3 {[%clk 0:01:58.9]} 10... Bf5 {[%clk 0:02:53.1]} 11. Be3 {[%clk 0:01:59.2]}
11... Ne4 {[%clk 0:02:49.5]} 12. Qa4 {[%clk 0:01:55.3]} 12... Qd7 {[%clk
0:02:44.5]} 13. Rfd1 {[%clk 0:01:44.6]} 13... Rfd8 {[%clk 0:02:44.2]} 14. Rac1
{[%clk 0:01:41.1]} 14... Nxc3 {[%clk 0:02:43.8]} 15. bxc3 {[%clk 0:01:35.3]}
15... Nxd4 {[%clk 0:02:41.7]} 16. Rxd4 {[%clk 0:01:31.9]} 16... Bxd4 {[%clk
0:02:28.8]} 17. Qxd7 {[%clk 0:01:21.4]} 17... Bxd7 {[%clk 0:02:27.7]} 18. cxd4
{[%clk 0:01:19]} 18... f6 {[%clk 0:02:25.7]} 19. Rb1 {[%clk 0:01:16]} 19... Bc6
{[%clk 0:02:22.7]} 20. Bf4 {[%clk 0:01:10.3]} 20... g5 {[%clk 0:02:21.5]} 21.
Bg3 {[%clk 0:01:08.2]} 21... h6 {[%clk 0:02:20.7]} 22. Bd3 {[%clk 0:01:03.6]}
22... Kf7 {[%clk 0:02:19.7]} 23. Bb5 {[%clk 0:00:49.1]} 23... Rd7 {[%clk
0:02:15.6]} 24. a4 {[%clk 0:00:44.7]} 24... e6 {[%clk 0:02:14.7]} 25. Nh2 {[%clk
0:00:39.3]} 25... Re8 {[%clk 0:01:57.3]} 26. Ng4 {[%clk 0:00:36.4]} 26... h5
{[%clk 0:01:57.7]} 27. Ne3 {[%clk 0:00:36.2]} 27... e5 {[%clk 0:01:42.5]} 28.
Nf5 {[%clk 0:00:33.9]} 28... Kg6 {[%clk 0:01:34.7]} 29. Nd6 {[%clk 0:00:30.1]}
29... Re6 {[%clk 0:01:35.3]} 30. Re1 {[%clk 0:00:28.9]} 30... e4 {[%clk
0:01:33.2]} 31. f3 {[%clk 0:00:19.8]} 31... f5 {[%clk 0:01:29.4]} 32. fxe4
{[%clk 0:00:17.9]} 32... fxe4 {[%clk 0:01:19.4]} 33. Be5 {[%clk 0:00:15.2]}
33... Rd8 {[%clk 0:00:49.3]} 34. Rb1 {[%clk 0:00:15.4]} 34... Rd7 {[%clk
0:00:47]} 35. Bxc6 {[%clk 0:00:16]} 35... bxc6 {[%clk 0:00:47.9]} 36. Rb8 {[%clk
0:00:16.5]} 36... Ree7 {[%clk 0:00:29.4]} 37. Kf2 {[%clk 0:00:17.1]} 37... h4
{[%clk 0:00:10.2]} 38. Ke3 {[%clk 0:00:17.8]} 38... Rh7 {[%clk 0:00:08.1]} 39.
Rg8+ {[%clk 0:00:18.1]} 39... Kh5 {[%clk 0:00:06.1]} 40. Rf8 {[%clk 0:00:16.8]}
40... Kg6 {[%clk 0:00:04.1]} 41. Rf6+ {[%clk 0:00:16.8]} 41... Kh5 {[%clk
0:00:04.8]} 42. Rf5 {[%clk 0:00:16.1]} 42... Rhe7 {[%clk 0:00:04.5]} 43. Rf6
{[%clk 0:00:15.4]} 43... Rh7 {[%clk 0:00:04.1]} 44. Nf5 {[%clk 0:00:14.4]} 44...
Rdf7 {[%clk 0:00:03.5]} 45. Rxf7 {[%clk 0:00:10.6]} 45... Rxf7 {[%clk
0:00:04.4]} 46. Nd6 {[%clk 0:00:10.1]} 46... Rf1 {[%clk 0:00:04.8]} 47. Ne8
{[%clk 0:00:08.9]} 47... Ra1 {[%clk 0:00:05.5]} 48. Nf6+ {[%clk 0:00:08.7]}
48... Kg6 {[%clk 0:00:06.3]} 49. Nd7 {[%clk 0:00:09.1]} 49... Rxa4 {[%clk
0:00:07]} 50. Nb8 {[%clk 0:00:07.7]} 50... Ra3+ {[%clk 0:00:07.8]} 51. Ke2
{[%clk 0:00:08.5]} 51... Ra2+ {[%clk 0:00:08]} 52. Kf1 {[%clk 0:00:08.8]} 52...
e3 {[%clk 0:00:07.7]} 53. Nxc6 {[%clk 0:00:09.5]} 53... Kf5 {[%clk 0:00:07.6]}
54. Nb4 {[%clk 0:00:09.7]} 54... Rf2+ {[%clk 0:00:06.6]} 55. Ke1 {[%clk
0:00:10.1]} 55... Ke4 {[%clk 0:00:07.4]} 56. c6 {[%clk 0:00:09.5]} 56... Rxg2
{[%clk 0:00:05.8]} 57. c7 {[%clk 0:00:09.8]} 57... Kf3 {[%clk 0:00:06.6]} 58.
Kd1 {[%clk 0:00:09.4]} 58... e2+ {[%clk 0:00:04.5]} 59. Kd2 {[%clk 0:00:09.9]}
59... Rg1 {[%clk 0:00:01.1]} 60. Nd3 {[%clk 0:00:10.5]} 60... Rd1+ {[%clk
0:00:01.8]} 61. Kc2 {[%clk 0:00:11.1]} 1-0

[Event "Early-Titled-Tuesday-Blitz-October-03-2023"]
[Site "Chess.com"]
[Date "2023.10.03"]
[Round "2"]
[White "Chessdreamer2020"]
[Black "ODreamchess"]
[Result "1-0"]
[WhiteElo "2550"]
[BlackElo "2754"]
[TimeControl "180+1"]
[EndTime "8:18:59 PDT"]
[Termination "Chessdreamer2020 won on time"]

1. e4 {[%clk 0:03:00.1]} 1... c6 {[%clk 0:02:59.5]} 2. d4 {[%clk 0:02:58.8]}
2... d5 {[%clk 0:03:00.4]} 3. exd5 {[%clk 0:02:59.7]} 3... cxd5 {[%clk
0:03:00.7]} 4. Bd3 {[%clk 0:03:00.6]} 4... Nf6 {[%clk 0:03:01.2]} 5. c3 {[%clk
0:03:01.5]} 5... Nc6 {[%clk 0:03:01.8]} 6. h3 {[%clk 0:03:02]} 6... g6 {[%clk
0:03:01.8]} 7. Nf3 {[%clk 0:03:02.5]} 7... Bf5 {[%clk 0:03:02.2]} 8. Be2 {[%clk
0:03:03.1]} 8... Bg7 {[%clk 0:03:02.1]} 9. O-O {[%clk 0:03:03.6]} 9... Ne4
{[%clk 0:03:02.2]} 10. Re1 {[%clk 0:03:03.6]} 10... O-O {[%clk 0:03:02.4]} 11.
Bf4 {[%clk 0:03:01.7]} 11... a6 {[%clk 0:03:02.2]} 12. Nbd2 {[%clk 0:03:00]}
12... b5 {[%clk 0:03:02]} 13. Bf1 {[%clk 0:02:53.2]} 13... Nxd2 {[%clk
0:02:55.1]} 14. Qxd2 {[%clk 0:02:51.5]} 14... Be4 {[%clk 0:02:45.5]} 15. Ng5
{[%clk 0:02:47.1]} 15... Bf5 {[%clk 0:02:45]} 16. Nf3 {[%clk 0:02:46.5]} 16...
Qb6 {[%clk 0:02:32.4]} 17. b4 {[%clk 0:02:27.3]} 17... Rfc8 {[%clk 0:02:29.6]}
18. a4 {[%clk 0:02:26.2]} 18... Be4 {[%clk 0:02:20.2]} 19. Ng5 {[%clk
0:02:21.9]} 19... Bf5 {[%clk 0:02:20.4]} 20. Ra3 {[%clk 0:01:49.2]} 20... Bd7
{[%clk 0:01:55.9]} 21. Rea1 {[%clk 0:01:27.1]} 21... Na7 {[%clk 0:01:50.8]} 22.
a5 {[%clk 0:01:10.2]} 22... Qb7 {[%clk 0:01:44.5]} 23. Re1 {[%clk 0:01:10.2]}
23... e6 {[%clk 0:01:43.9]} 24. Nf3 {[%clk 0:01:08.7]} 24... Nc6 {[%clk
0:01:43.4]} 25. h4 {[%clk 0:01:07.7]} 25... h5 {[%clk 0:01:41.9]} 26. Ng5 {[%clk
0:01:07.1]} 26... Re8 {[%clk 0:01:37.7]} 27. Raa1 {[%clk 0:01:06.7]} 27... Rac8
{[%clk 0:01:37.2]} 28. Re3 {[%clk 0:01:06.8]} 28... Ne7 {[%clk 0:01:37.5]} 29.
g3 {[%clk 0:01:00.7]} 29... Nf5 {[%clk 0:01:37.2]} 30. Re2 {[%clk 0:01:00.7]}
30... Qc6 {[%clk 0:01:37.5]} 31. Rc1 {[%clk 0:01:00.1]} 31... Nd6 {[%clk
0:01:37.8]} 32. Bxd6 {[%clk 0:00:57.1]} 32... Qxd6 {[%clk 0:01:38.3]} 33. Rce1
{[%clk 0:00:53.9]} 33... Rc6 {[%clk 0:01:22.9]} 34. f4 {[%clk 0:00:37.6]} 34...
Rec8 {[%clk 0:01:19.5]} 35. Re3 {[%clk 0:00:37.8]} 35... Qc7 {[%clk 0:01:11.7]}
36. Rc1 {[%clk 0:00:36.4]} 36... Bf8 {[%clk 0:01:10.6]} 37. Nf3 {[%clk
0:00:35.4]} 37... Bxb4 {[%clk 0:01:06.2]} 38. Ne5 {[%clk 0:00:30.6]} 38... Bxa5
{[%clk 0:00:40.7]} 39. Nxc6 {[%clk 0:00:27.7]} 39... Qxc6 {[%clk 0:00:41.6]} 40.
Bg2 {[%clk 0:00:18.8]} 40... b4 {[%clk 0:00:38.8]} 41. c4 {[%clk 0:00:18.8]}
41... Bb6 {[%clk 0:00:30.6]} 42. Ree1 {[%clk 0:00:17.1]} 42... a5 {[%clk
0:00:28.3]} 43. cxd5 {[%clk 0:00:17.1]} 43... Qd6 {[%clk 0:00:24.3]} 44. Rxc8+
{[%clk 0:00:17.1]} 44... Bxc8 {[%clk 0:00:24.6]} 45. dxe6 {[%clk 0:00:17.5]}
45... Bxe6 {[%clk 0:00:24.1]} 46. Rd1 {[%clk 0:00:12.1]} 46... b3 {[%clk
0:00:24.6]} 47. Kh2 {[%clk 0:00:12.1]} 47... a4 {[%clk 0:00:24.5]} 48. d5 {[%clk
0:00:11.3]} 48... Bg4 {[%clk 0:00:24.5]} 49. Rb1 {[%clk 0:00:08.8]} 49... Bf5
{[%clk 0:00:17.4]} 50. Rb2 {[%clk 0:00:06.3]} 50... Bc5 {[%clk 0:00:17.8]} 51.
Qc3 {[%clk 0:00:05.7]} 51... Ba3 {[%clk 0:00:17.5]} 52. Re2 {[%clk 0:00:05.2]}
52... Qd7 {[%clk 0:00:14.7]} 53. Qd4 {[%clk 0:00:02.1]} 53... Bf8 {[%clk
0:00:13.2]} 54. Qc3 {[%clk 0:00:01.6]} 54... Bg7 {[%clk 0:00:12.9]} 55. Qb4
{[%clk 0:00:02.1]} 55... b2 {[%clk 0:00:12.9]} 56. Rxb2 {[%clk 0:00:01.9]} 56...
Bxb2 {[%clk 0:00:12.4]} 57. Qxb2 {[%clk 0:00:02.8]} 57... Qa7 {[%clk 0:00:11.7]}
58. Qa2 {[%clk 0:00:03.3]} 58... a3 {[%clk 0:00:11.6]} 59. d6 {[%clk 0:00:03.2]}
59... Be6 {[%clk 0:00:12.1]} 60. Bd5 {[%clk 0:00:03.3]} 60... Bxd5 {[%clk
0:00:11.7]} 61. Qxd5 {[%clk 0:00:04.2]} 61... Qf2+ {[%clk 0:00:06.2]} 62. Kh3
{[%clk 0:00:04.7]} 62... Qf1+ {[%clk 0:00:06.6]} 63. Kh2 {[%clk 0:00:05.2]}
63... Qe2+ {[%clk 0:00:06.5]} 64. Kh3 {[%clk 0:00:05.6]} 64... Qg4+ {[%clk
0:00:04.7]} 65. Kh2 {[%clk 0:00:05.6]} 65... Qd7 {[%clk 0:00:05.6]} 66. Qd2
{[%clk 0:00:05.8]} 1-0